fUST/lending_fUST_20250901
["ID","MTS","AMOUNT","RATE_DAILY","PERIOD"]
[382545355,1756663840820,-151.0,0.00017,2]
[382545356,1756663840829,-151.0,0.00017,2]
[382545357,1756663840839,-1744.0,0.00017023,2]
[382545358,1756663840849,-500.0,0.00017046,2]
[382545359,1756663840859,-283.88,0.00017046,2]
[382545360,1756663840869,-283.88,0.00017046,2]
[382545361,1756663840879,-283.88,0.00017046,2]
[382545362,1756663840890,-283.88,0.00017046,2]
[382545363,1756663840899,-283.88,0.00017046,2]
[382545364,1756663840909,-283.88,0.00017046,2]
[382545365,1756663840919,-283.84,0.00017046,2]
[382545366,1756663840929,-1114.55,0.0001707,2]
[382545367,1756663840938,-480.0,0.0001707,2]
[382545368,1756663840948,-480.0,0.0001707,2]
[382545369,1756663840957,-480.0,0.0001707,2]
[382545370,1756663840966,-484.58,0.0001707,2]
[382545371,1756663840974,-553.99,0.0001707,2]
[382545372,1756663840984,-584.35,0.0001707,2]
[382545373,1756663840993,-2129.52,0.0001707,2]
[382545374,1756663841002,-518.3,0.0001707,2]
[382545375,1756663841010,-480.0,0.0001707,2]
[382545376,1756663841020,-1761.05,0.0001707,2]
[382545377,1756663841029,-1192.46,0.0001707,2]
[382545378,1756663841038,-1754.38,0.0001707,2]
[382545379,1756663841048,-480.0,0.0001707,2]
[382545380,1756663841058,-480.0,0.0001707,2]
[382545381,1756663841068,-480.0,0.0001707,2]
[382545382,1756663841078,-744.54,0.0001707,2]
[382545383,1756663841088,-480.0,0.0001707,2]
[382545384,1756663841098,-480.0,0.0001707,2]
[382545385,1756663841107,-625.83,0.0001707,2]
[382545386,1756663841118,-760.49,0.0001707,2]
[382545387,1756663841128,-480.0,0.0001707,2]
[382545388,1756663841137,-480.0,0.0001707,2]
[382545389,1756663841147,-592.49,0.0001707,2]
[382545390,1756663841156,-567.45,0.0001707,2]
[382545391,1756663841166,-480.0,0.00017071,2]
[382545392,1756663841175,-400.0,0.00017071,2]
[382545393,1756663841184,-480.0,0.00017071,2]
[382545394,1756663841194,-1065.21,0.00017071,2]
[382545395,1756663841204,-480.0,0.00017071,2]
[382545396,1756663841214,-480.0,0.00017071,2]
[382545397,1756663841227,-480.0,0.00017071,2]
[382545398,1756663841237,-480.0,0.00017071,2]
[382545399,1756663841246,-480.0,0.00017071,2]
[382545400,1756663841256,-565.44,0.00017071,2]
[382545401,1756663841266,-480.0,0.00017071,2]
[382545402,1756663841276,-619.74,0.00017071,2]
[382545403,1756663841286,-504.19,0.00017071,2]
[382545404,1756663841296,-480.0,0.00017071,2]
[382545405,1756663841306,-514.21,0.00017071,2]
[382545406,1756663841315,-1545.76,0.00017071,2]
[382545407,1756663841324,-480.0,0.00017071,2]
[382545408,1756663841334,-207.70151326,0.00017071,2]
[382545409,1756663841344,-480.0,0.00017071,2]
[382545410,1756663841353,-480.0,0.00017071,2]
[382545411,1756663841363,-510.56,0.00017071,2]
[382545412,1756663841373,-480.0,0.00017071,2]
[382545413,1756663841382,-480.0,0.00017071,2]
[382545414,1756663841393,-480.0,0.00017071,2]
[382545415,1756663841402,-738.05,0.00017071,2]
[382545416,1756663841412,-837.22,0.00017071,2]
[382545417,1756663841421,-480.0,0.00017071,2]
[382545418,1756663841431,-480.0,0.00017071,2]
[382545419,1756663841440,-480.0,0.00017071,2]
[382545420,1756663841451,-1035.09,0.00017071,2]
[382545421,1756663841461,-668.82,0.00017071,2]
[382545422,1756663841470,-1122.9,0.00017071,2]
[382545423,1756663841479,-719.24,0.00017071,2]
[382545424,1756663841490,-853.26,0.00017071,2]
[382545425,1756663841499,-480.0,0.00017071,2]
[382545426,1756663841509,-201.64979696,0.00017071,2]
[382545427,1756663841518,-480.0,0.00017071,2]
[382545428,1756663841528,-502.13,0.00017071,2]
[382545429,1756663841538,-480.0,0.00017071,2]
[382545430,1756663841548,-480.0,0.00017071,2]
[382545431,1756663841557,-480.0,0.00017071,2]
[382545432,1756663841567,-480.0,0.00017071,2]
[382545433,1756663841576,-480.0,0.00017071,2]
[382545434,1756663841586,-586.78,0.00017071,2]
[382545435,1756663841595,-727.45,0.00017071,2]
[382545436,1756663841605,-480.0,0.00017071,2]
[382545437,1756663841616,-480.0,0.00017071,2]
[382545438,1756663841626,-480.0,0.00017071,2]
[382545439,1756663841635,-506.27,0.00017071,2]
[382545440,1756663841645,-690.59,0.00017071,2]
[382545441,1756663841655,-1004.02,0.00017071,2]
[382545442,1756663841664,-1000.12,0.00017071,2]
[382545443,1756663841674,-480.0,0.00017071,2]
[382545444,1756663841684,-480.0,0.00017071,2]
[382545445,1756663841694,-480.0,0.00017071,2]
[382545446,1756663841704,-960.92,0.00017071,2]
[382545447,1756663841713,-5709.13,0.00017071,2]
[382545448,1756663841726,-807.97,0.00017071,2]
[382545449,1756663841735,-1056.16,0.00017071,2]
[382545450,1756663841744,-873.14,0.00017071,2]
[382545451,1756663841754,-3641.22,0.00017071,2]
[382545452,1756663841763,-403.69838574,0.00017071,2]
[382545453,1756663841772,-652.64,0.00017071,2]
[382545454,1756663841782,-480.0,0.00017071,2]
[382545455,1756663841791,-1023.16,0.00017071,2]
[382545456,1756663841801,-1318.64,0.00017071,2]
[382545457,1756663841812,-1747.03,0.00017071,2]
[382545458,1756663841822,-480.0,0.00017071,2]
[382545459,1756663841832,-480.0,0.00017071,2]
[382545460,1756663841842,-480.0,0.00017071,2]
[382545461,1756663841851,-480.0,0.00017071,2]
[382545462,1756663841861,-480.0,0.00017071,2]
[382545463,1756663841870,-828.71,0.00017071,2]
[382545464,1756663841880,-480.0,0.00017071,2]
[382545465,1756663841890,-848.0,0.00017071,2]
[382545466,1756663841899,-494.09,0.00017071,2]
[382545467,1756663841908,-480.0,0.00017071,2]
[382545468,1756663841918,-480.0,0.00017071,2]
[382545469,1756663841927,-4134.51,0.00017071,2]
[382545470,1756663841937,-480.0,0.00017071,2]
[382545471,1756663841946,-480.0,0.00017071,2]
[382545472,1756663841955,-486.53,0.00017071,2]
[382545473,1756663841965,-480.0,0.00017071,2]
[382545474,1756663841974,-480.0,0.00017071,2]
[382545475,1756663841985,-4976.34,0.00017071,2]
[382545476,1756663841995,-899.11,0.00017071,2]
[382545477,1756663842006,-480.0,0.00017071,2]
[382545478,1756663842015,-604.68,0.00017071,2]
[382545479,1756663842025,-480.0,0.00017071,2]
[382545480,1756663842035,-2257.96,0.00017071,2]
[382545481,1756663842045,-915.0,0.00017071,2]
[382545482,1756663842055,-866.44,0.00017071,2]
[382545483,1756663842066,-494.9,0.00017071,2]
[382545484,1756663842075,-480.0,0.00017071,2]
[382545485,1756663842085,-480.0,0.00017071,2]
[382545486,1756663842094,-1296.33,0.00017071,2]
[382545487,1756663842103,-480.0,0.00017071,2]
[382545488,1756663842113,-480.0,0.00017071,2]
[382545489,1756663842123,-1042.9,0.00017071,2]
[382545490,1756663842132,-480.0,0.00017071,2]
[382545491,1756663842142,-997.0,0.00017071,2]
[382545492,1756663842152,-618.75,0.00017071,2]
[382545493,1756663842161,-480.0,0.00017071,2]
[382545494,1756663842171,-480.0,0.00017071,2]
[382545495,1756663842180,-748.32,0.00017071,2]
[382545496,1756663842189,-480.0,0.00017071,2]
[382545497,1756663842199,-1041.59,0.00017071,2]
[382545498,1756663842209,-989.12,0.00017071,2]
[382545499,1756663842223,-480.0,0.00017071,2]
[382545500,1756663842232,-523.97,0.00017071,2]
[382545501,1756663842242,-480.0,0.00017071,2]
[382545502,1756663842251,-480.0,0.00017071,2]
[382545503,1756663842262,-706.73,0.00017071,2]
[382545504,1756663842271,-1104.14,0.00017071,2]
[382545505,1756663842281,-480.0,0.00017071,2]
[382545506,1756663842291,-480.0,0.00017071,2]
[382545507,1756663842302,-480.0,0.00017071,2]
[382545508,1756663842313,-480.0,0.00017071,2]
[382545509,1756663842323,-480.0,0.00017071,2]
[382545510,1756663842333,-942.43,0.00017071,2]
[382545511,1756663842343,-695.96,0.00017071,2]
[382545512,1756663842353,-480.0,0.00017071,2]
[382545513,1756663842363,-480.0,0.00017071,2]
[382545514,1756663842373,-151.0,0.000171,2]
[382545515,1756663842384,-151.0,0.000171,2]
[382545516,1756663842394,-151.0,0.000171,2]
[382545517,1756663842405,-1887.87,0.00017145,2]
[382545518,1756663842415,-3163.64,0.00017145,2]
[382545519,1756663842425,-636.1,0.00017145,2]
[382545520,1756663842435,-480.0,0.00017145,2]
[382545521,1756663842444,-910.73,0.00017145,2]
[382545522,1756663842454,-1292.35,0.00017145,2]
[382545523,1756663842464,-600.18,0.00017145,2]
[382545524,1756663842473,-480.0,0.00017146,2]
[382545525,1756663842482,-492.3,0.00017146,2]
[382545526,1756663842491,-498.98,0.00017146,2]
[382545527,1756663842500,-1166.01,0.00017146,2]
[382545528,1756663842510,-480.0,0.00017146,2]
[382545529,1756663842519,-480.0,0.00017146,2]
[382545530,1756663842529,-480.0,0.00017146,2]
[382545531,1756663842538,-526.61,0.00017146,2]
[382545532,1756663842548,-1015.61,0.00017146,2]
[382545533,1756663842558,-480.0,0.00017146,2]
[382545534,1756663842567,-480.0,0.00017146,2]
[382545535,1756663842577,-480.0,0.00017146,2]
[382545536,1756663842588,-893.7,0.00017146,2]
[382545537,1756663842598,-480.0,0.00017146,2]
[382545538,1756663842608,-480.0,0.00017146,2]
[382545539,1756663842618,-480.0,0.00017146,2]
[382545540,1756663842628,-588.99,0.00017146,2]
[382545541,1756663842638,-1280.26,0.00017146,2]
[382545542,1756663842648,-480.0,0.00017146,2]
[382545543,1756663842657,-1074.17,0.00017146,2]
[382545544,1756663842667,-480.0,0.00017146,2]
[382545545,1756663842676,-480.0,0.00017146,2]
[382545546,1756663842686,-607.35,0.00017146,2]
[382545547,1756663842695,-499.64,0.00017146,2]
[382545548,1756663842704,-1214.75,0.00017146,2]
[382545549,1756663842713,-480.0,0.00017146,2]
[382545550,1756663842723,-480.0,0.00017146,2]
[382545551,1756663842732,-600.48,0.00017146,2]
[382545552,1756663842742,-480.0,0.00017146,2]
[382545553,1756663842751,-480.0,0.00017146,2]
[382545554,1756663842761,-1129.46,0.00017146,2]
[382545555,1756663842770,-480.0,0.00017146,2]
[382545556,1756663842779,-480.0,0.00017146,2]
[382545557,1756663842788,-625.70560215,0.00017146,2]
[382545558,1756663842798,-480.0,0.00017146,2]
[382545559,1756663842807,-669.42,0.00017146,2]
[382545560,1756663842816,-210.59940042,0.00017146,2]
[382545561,1756663842826,-480.0,0.00017146,2]
[382545562,1756663842838,-487.47,0.00017146,2]
[382545563,1756663842852,-480.0,0.00017146,2]
[382545566,1756663842863,-1371.46,0.00017146,2]
[382545567,1756663842873,-1039.62,0.00017146,2]
[382545568,1756663842883,-480.0,0.00017146,2]
[382545569,1756663842894,-874.47,0.00017146,2]
[382545570,1756663842903,-480.0,0.00017146,2]
[382545571,1756663842912,-480.0,0.00017146,2]
[382545572,1756663842922,-480.0,0.00017146,2]
[382545573,1756663842932,-986.16,0.00017146,2]
[382545574,1756663842942,-480.0,0.00017146,2]
[382545575,1756663842952,-480.0,0.00017146,2]
[382545576,1756663842962,-480.0,0.00017146,2]
[382545577,1756663842972,-480.0,0.00017146,2]
[382545578,1756663842982,-524.75,0.00017146,2]
[382545579,1756663842992,-480.0,0.00017146,2]
[382545580,1756663843003,-480.0,0.00017146,2]
[382545581,1756663843012,-1277.35,0.00017146,2]
[382545582,1756663843022,-1064.59,0.00017146,2]
[382545583,1756663843032,-480.0,0.00017146,2]
[382545584,1756663843041,-480.0,0.00017146,2]
[382545585,1756663843051,-480.0,0.00017146,2]
[382545586,1756663843062,-717.99,0.00017146,2]
[382545587,1756663843073,-480.0,0.00017146,2]
[382545588,1756663843083,-480.0,0.00017146,2]
[382545589,1756663843093,-480.0,0.00017146,2]
[382545590,1756663843103,-567.93,0.00017146,2]
[382545591,1756663843113,-480.0,0.00017146,2]
[382545593,1756663843123,-1157.17,0.00017146,2]
[382545594,1756663843132,-480.0,0.00017146,2]
[382545596,1756663843141,-480.0,0.00017146,2]
[382545597,1756663843151,-480.0,0.00017146,2]
[382545598,1756663843160,-666.75,0.00017146,2]
[382545599,1756663843170,-596.14,0.00017146,2]
[382545600,1756663843180,-480.0,0.00017146,2]
[382545601,1756663843189,-480.0,0.00017146,2]
[382545602,1756663843199,-480.0,0.00017146,2]
[382545603,1756663843208,-1198.43,0.00017146,2]
[382545604,1756663843218,-480.0,0.00017146,2]
[382545605,1756663843231,-595.33,0.00017146,2]
[382545606,1756663843240,-480.0,0.00017146,2]
[382545607,1756663843250,-480.0,0.00017146,2]
[382545608,1756663843259,-480.0,0.00017146,2]
[382545609,1756663843270,-480.0,0.00017146,2]
[382545610,1756663843280,-480.0,0.00017146,2]
[382545611,1756663843291,-536.49,0.00017146,2]
[382545612,1756663843300,-480.0,0.00017146,2]
[382545613,1756663843311,-480.0,0.00017146,2]
[382545614,1756663843321,-480.0,0.00017146,2]
[382545615,1756663843331,-549.55,0.00017146,2]
[382545616,1756663843340,-480.0,0.00017146,2]
[382545617,1756663843349,-516.35,0.00017146,2]
[382545618,1756663843358,-480.0,0.00017146,2]
[382545619,1756663843367,-962.38,0.00017146,2]
[382545620,1756663843377,-552.36,0.00017146,2]
[382545621,1756663843387,-973.51,0.00017146,2]
[382545622,1756663843397,-822.05,0.00017146,2]
[382545623,1756663843407,-480.0,0.00017146,2]
[382545624,1756663843416,-480.0,0.00017146,2]
[382545625,1756663843426,-480.0,0.00017146,2]
[382545626,1756663843435,-554.79,0.00017146,2]
[382545627,1756663843444,-519.71,0.00017146,2]
[382545628,1756663843454,-1180.13,0.00017146,2]
[382545629,1756663843463,-1022.47,0.00017146,2]
[382545630,1756663843473,-480.0,0.00017146,2]
[382545631,1756663843483,-1156.67,0.00017146,2]
[382545632,1756663843493,-480.0,0.00017146,2]
[382545633,1756663843502,-151.0,0.00017146,2]
[382545634,1756663843511,-480.0,0.00017146,2]
[382545635,1756663843521,-151.0,0.00017146,2]
[382545636,1756663843530,-480.0,0.00017146,2]
[382545637,1756663843540,-1145.21,0.00017146,2]
[382545638,1756663843550,-995.96,0.00017146,2]
[382545639,1756663843559,-151.0,0.00017146,2]
[382545640,1756663843569,-1177.74,0.00017146,2]
[382545641,1756663843578,-151.0,0.00017146,2]
[382545642,1756663843587,-169.664587,0.00017146,2]
[382545643,1756663843597,-1260.57,0.00017146,2]
[382545644,1756663843607,-151.0,0.00017146,2]
[382545645,1756663843618,-151.0,0.00017146,2]
[382545646,1756663843628,-151.0,0.00017146,2]
[382545647,1756663843638,-151.0,0.00017146,2]
[382545648,1756663843648,-480.0,0.00017146,2]
[382545649,1756663843658,-151.0,0.00017146,2]
[382545650,1756663843668,-151.0,0.00017146,2]
[382545651,1756663843678,-151.0,0.00017146,2]
[382545652,1756663843688,-151.0,0.00017146,2]
[382545653,1756663843698,-480.0,0.00017146,2]
[382545654,1756663843708,-151.0,0.00017146,2]
[382545655,1756663843718,-480.0,0.00017146,2]
[382545656,1756663843727,-480.0,0.00017146,2]
[382545657,1756663843736,-480.0,0.00017146,2]
[382545658,1756663843746,-238.055936,0.00017146,2]
[382545659,1756663843755,-238.055936,0.00017146,2]
[382545660,1756663843765,-480.0,0.00017146,2]
[382545661,1756663843775,-238.055936,0.00017146,2]
[382545662,1756663843784,-238.055936,0.00017146,2]
[382545663,1756663843795,-480.0,0.00017146,2]
[382545664,1756663843805,-480.0,0.00017146,2]
[382545665,1756663843815,-151.0,0.00017146,2]
[382545666,1756663843824,-480.0,0.00017146,2]
[382545667,1756663843833,-287.782845,0.00017146,2]
[382545668,1756663843844,-480.0,0.00017146,2]
[382545669,1756663843854,-480.0,0.00017146,2]
[382545670,1756663843864,-480.0,0.00017146,2]
[382545671,1756663843874,-151.0,0.00017146,2]
[382545672,1756663843883,-480.0,0.00017146,2]
[382545673,1756663843893,-151.0,0.00017146,2]
[382545674,1756663843903,-480.0,0.00017146,2]
[382545675,1756663843912,-480.0,0.00017146,2]
[382545676,1756663843922,-151.0,0.00017146,2]
[382545677,1756663843932,-480.0,0.00017146,2]
[382545678,1756663843942,-480.0,0.00017146,2]
[382545679,1756663843952,-480.0,0.00017146,2]
[382545680,1756663843963,-480.0,0.00017146,2]
[382545681,1756663843973,-151.0,0.00017146,2]
[382545682,1756663843982,-480.0,0.00017146,2]
[382545683,1756663843991,-480.0,0.00017146,2]
[382545684,1756663844001,-480.0,0.00017146,2]
[382545685,1756663844010,-1814.06,0.00017146,2]
[382545686,1756663844021,-480.0,0.00017146,2]
[382545687,1756663844031,-1109.88,0.00017146,2]
[382545688,1756663844203,-480.0,0.00017146,2]
[382545689,1756663844213,-533.35,0.00017146,2]
[382545690,1756663844228,-707.16,0.00017146,2]
[382545691,1756663844238,-480.0,0.00017146,2]
[382545692,1756663844248,-637.31,0.00017146,2]
[382545693,1756663844257,-480.0,0.00017146,2]
[382545694,1756663844271,-480.0,0.00017146,2]
[382545695,1756663844282,-480.0,0.00017146,2]
[382545696,1756663844292,-1340.44,0.00017146,2]
[382545697,1756663844302,-480.0,0.00017146,2]
[382545698,1756663844311,-480.0,0.00017146,2]
[382545699,1756663844321,-480.0,0.00017146,2]
[382545700,1756663844330,-480.0,0.00017146,2]
[382545701,1756663844340,-480.0,0.00017146,2]
[382545702,1756663844349,-480.0,0.00017146,2]
[382545703,1756663844359,-480.0,0.00017146,2]
[382545704,1756663844368,-682.71,0.00017146,2]
[382545705,1756663844379,-480.0,0.00017146,2]
[382545706,1756663844390,-480.0,0.00017146,2]
[382545707,1756663844400,-480.0,0.00017146,2]
[382545708,1756663844409,-480.0,0.00017146,2]
[382545709,1756663844418,-480.0,0.00017146,2]
[382545710,1756663844428,-480.0,0.00017146,2]
[382545711,1756663844438,-559.12,0.00017146,2]
[382545712,1756663844449,-480.0,0.00017146,2]
[382545713,1756663844458,-480.0,0.00017146,2]
[382545714,1756663844468,-500.0,0.00017146,2]
[382545715,1756663844477,-480.0,0.00017173,2]
[382545716,1756663844487,-832.33,0.00017173,2]
[382545717,1756663844496,-1151.41,0.00017173,2]
[382545718,1756663844505,-1230.26,0.00017173,2]
[382545719,1756663844515,-601.63,0.00017173,2]
[382545720,1756663844524,-480.0,0.00017173,2]
[382545721,1756663844534,-557.89,0.00017173,2]
[382545722,1756663844544,-780.69,0.00017173,2]
[382545723,1756663844554,-480.0,0.00017173,2]
[382545724,1756663844563,-480.0,0.00017173,2]
[382545725,1756663844573,-708.49,0.00017173,2]
[382545726,1756663844583,-480.0,0.00017173,2]
[382545727,1756663844592,-480.0,0.00017173,2]
[382545728,1756663844602,-480.0,0.00017173,2]
[382545729,1756663844611,-949.02,0.00017173,2]
[382545730,1756663844621,-480.0,0.00017173,2]
[382545731,1756663844631,-919.86,0.00017173,2]
[382545732,1756663844641,-609.32,0.00017173,2]
[382545733,1756663844650,-480.0,0.00017173,2]
[382545734,1756663844660,-480.0,0.00017173,2]
[382545735,1756663844669,-480.0,0.00017173,2]
[382545736,1756663844678,-902.55,0.00017173,2]
[382545737,1756663844689,-1588.04,0.00017173,2]
[382545738,1756663844698,-165.47958596,0.00017173,2]
[382545739,1756663844708,-480.0,0.00017173,2]
[382545740,1756663844718,-699.93,0.00017173,2]
[382545741,1756663844727,-480.0,0.00017173,2]
[382545742,1756663844737,-480.0,0.00017173,2]
[382545743,1756663844745,-480.0,0.00017173,2]
[382545744,1756663844755,-480.0,0.00017173,2]
[382545745,1756663844764,-480.0,0.00017173,2]
[382545746,1756663844774,-574.16,0.00017173,2]
[382545747,1756663844783,-151.0,0.00017173,2]
[382545748,1756663844793,-151.0,0.00017173,2]
[382545749,1756663844803,-151.0,0.00017173,2]
[382545750,1756663844814,-480.0,0.00017173,2]
[382545751,1756663844823,-151.0,0.00017173,2]
[382545752,1756663844833,-480.0,0.00017173,2]
[382545753,1756663844842,-151.0,0.00017173,2]
[382545754,1756663844852,-151.0,0.00017173,2]
[382545755,1756663844862,-151.0,0.00017173,2]
[382545756,1756663844871,-480.0,0.00017173,2]
[382545757,1756663844880,-270.445229,0.00017173,2]
[382545758,1756663844890,-151.0,0.00017173,2]
[382545759,1756663844900,-151.0,0.00017173,2]
[382545760,1756663844909,-168.887494,0.00017173,2]
[382545761,1756663844919,-168.887494,0.00017173,2]
[382545762,1756663844928,-168.887494,0.00017173,2]
[382545763,1756663844938,-151.0,0.00017173,2]
[382545764,1756663844947,-168.887494,0.00017173,2]
[382545765,1756663844957,-151.0,0.000172,2]
[382545766,1756663844967,-151.0,0.000172,2]
[382545767,1756663844976,-151.0,0.00017202,2]
[382545768,1756663844985,-151.0,0.00017202,2]
[382545769,1756663844995,-151.0,0.00017202,2]
[382545770,1756663845004,-151.0,0.00017202,2]
[382545771,1756663845013,-151.0,0.00017202,2]
[382545772,1756663845022,-154.702727,0.00017202,2]
[382545773,1756663845031,-151.0,0.00017202,2]
[382545774,1756663845041,-3028.397421,0.00017202,2]
[382545775,1756663845050,-1595.22,0.00017246,2]
[382545776,1756663845059,-1595.22,0.00017246,2]
[382545777,1756663845067,-1595.22,0.00017246,2]
[382545778,1756663845076,-1595.22,0.00017246,2]
[382545779,1756663845085,-1595.26046566,0.00017246,2]
[382545780,1756663845094,-480.0,0.00017247,2]
[382545781,1756663845103,-852.81,0.00017247,2]
[382545782,1756663845112,-480.0,0.00017247,2]
[382545783,1756663845122,-763.5,0.00017247,2]
[382545784,1756663845131,-500.0,0.00017247,2]
[382545785,1756663845140,-480.0,0.00017247,2]
[382545786,1756663845149,-480.0,0.00017247,2]
[382545787,1756663845159,-500.0,0.00017247,2]
[382545788,1756663845168,-482.59720954,0.00017247,2]
[382545789,1756663845178,-405.51587298,0.00017247,2]
[382545790,1756663845187,-480.0,0.00017247,2]
[382545791,1756663845196,-480.0,0.00017247,2]
[382545792,1756663845206,-480.0,0.00017247,2]
[382545793,1756663845214,-480.0,0.00017247,2]
[382545794,1756663845229,-480.0,0.00017247,2]
[382545795,1756663845239,-480.0,0.00017247,2]
[382545796,1756663845248,-480.0,0.00017247,2]
[382545797,1756663845258,-480.0,0.00017247,2]
[382545798,1756663845269,-547.95,0.00017247,2]
[382545799,1756663845279,-480.0,0.00017247,2]
[382545800,1756663845289,-480.0,0.00017247,2]
[382545801,1756663845299,-710.85,0.00017247,2]
[382545802,1756663845309,-480.0,0.00017247,2]
[382545803,1756663845319,-480.0,0.00017247,2]
[382545804,1756663845329,-480.0,0.00017247,2]
[382545805,1756663845338,-977.51,0.00017247,2]
[382545806,1756663845348,-480.0,0.00017247,2]
[382545807,1756663845358,-480.0,0.00017247,2]
[382545808,1756663845368,-480.0,0.00017247,2]
[382545809,1756663845378,-512.4,0.00017247,2]
[382545810,1756663845387,-480.0,0.00017247,2]
[382545811,1756663845399,-587.65353831,0.00017247,2]
[382545812,1756663845408,-480.0,0.00017247,2]
[382545813,1756663845418,-480.0,0.00017247,2]
[382545814,1756663845428,-480.0,0.00017247,2]
[382545815,1756663845438,-480.0,0.00017247,2]
[382545816,1756663845447,-481.07907518,0.00017247,2]
[382545817,1756663845457,-604.86,0.00017247,2]
[382545818,1756663845467,-731.8,0.00017247,2]
[382545819,1756663845477,-848.67,0.00017247,2]
[382545820,1756663845487,-625.64,0.00017247,2]
[382545821,1756663845496,-480.0,0.00017247,2]
[382545822,1756663845506,-1234.88,0.00017247,2]
[382545823,1756663845515,-484.56,0.00017247,2]
[382545824,1756663845525,-489.6535696,0.00017247,2]
[382545825,1756663845535,-480.0,0.00017247,2]
[382545826,1756663845544,-480.0,0.00017247,2]
[382545827,1756663845554,-480.0,0.00017247,2]
[382545828,1756663845563,-486.26,0.00017247,2]
[382545829,1756663845573,-950.35,0.00017247,2]
[382545830,1756663845583,-480.00000001,0.00017247,2]
[382545831,1756663845592,-151.0,0.00017247,2]
[382545832,1756663845603,-151.0,0.00017247,2]
[382545833,1756663845612,-765.75,0.00017247,2]
[382545834,1756663845622,-151.0,0.00017247,2]
[382545835,1756663845632,-151.0,0.00017247,2]
[382545836,1756663845642,-480.0,0.00017247,2]
[382545837,1756663845653,-151.0,0.00017247,2]
[382545838,1756663845663,-151.0,0.00017247,2]
[382545839,1756663845672,-526.08976141,0.00017247,2]
[382545840,1756663845683,-480.0,0.00017247,2]
[382545841,1756663845693,-151.0,0.00017247,2]
[382545842,1756663845704,-151.0,0.00017247,2]
[382545843,1756663845714,-151.0,0.00017247,2]
[382545844,1756663845724,-480.0,0.00017247,2]
[382545845,1756663845734,-480.0,0.00017247,2]
[382545846,1756663845744,-480.0,0.00017247,2]
[382545847,1756663845754,-151.0,0.00017247,2]
[382545848,1756663845764,-151.0,0.00017247,2]
[382545849,1756663845773,-480.0,0.00017247,2]
[382545850,1756663845783,-151.0,0.00017247,2]
[382545851,1756663845792,-480.0,0.00017247,2]
[382545852,1756663845802,-151.0,0.00017247,2]
[382545853,1756663845812,-583.46,0.00017247,2]
[382545854,1756663845821,-151.0,0.00017247,2]
[382545855,1756663845830,-151.0,0.00017247,2]
[382545856,1756663845841,-480.0,0.00017247,2]
[382545857,1756663845851,-151.0,0.00017247,2]
[382545858,1756663845861,-480.0,0.00017247,2]